[Event "Hungarian Youth-ch U16 2022"]
[Site "Eger"]
[Date "2022.07.27"]
[Round "5.6"]
[White "Harkai, Emma"]
[Black "Karacsonyi, Kata"]
[Result "0-1"]
[ECO "B22"]
[WhiteElo "1761"]
[BlackElo "2147"]
[Annotator "TA"]
[PlyCount "170"]
[EventDate "2022.07.21"]
[EventType "tourn"]
[EventCountry "HUN"]
[SourceTitle "playchess.com"]
[Source "ChessBase"]
[SourceQuality "1"]
[TimeControl "40/5400+30:1800+30"]

{[%evp 14,170,2,5,10,9,15,17,6,-21,-12,-8,-4,-3,-9,-8,27,-8,-8,-16,-9,-17,-13,-18,0,0,12,12,12,0,16,13,27,0,0,0,0,0,0,0,0,-63,-89,-85,-61,-105,-107,-91,0,0,0,0,-6,-27,-22,-101,0,-269,-260,-322,-312,-368,-360,-329,-293,-338,-333,-338,-323,-304,-300,-300,-285,-285,-277,-354,-338,-1095,-242,-233,-16,-16,-30,-30,0,0,0,0,0,0,0,0,0,0,0,0,0,0,0,0,0,0,0,0,0,0,-106,-185,0,0,0,0,0,0,0,0,0,0,0,0,0,0,0,0,0,0,0,0,0,0,0,0,0,0,0,0,0,0,0,-29978,-29979,-29979,-29980,-29979,-29981,-29986,-29979,-29986,-29983,-29985,-29985,-29985,-29986,-29981,-29977,-29989,-29990,-29990,-29991]} 1. e4 {[%emt 0:00:33]} c5 {[%emt 0:00:37]} 2. c3 {[%emt 0:00:15]} d5 {[%emt 0:00:10]} 3. exd5 {[%emt 0:00:11]} Qxd5 {[%emt 0:00:08]} 4. d4 {[%emt 0:00:08]} g6 {[%emt 0:00:26]} 5. Be3 {[%emt 0:01:19]} cxd4 {[%emt 0:00:30]} 6. cxd4 {[%emt 0:01:44]} Bg7 {[%emt 0:01:58]} 7. Nc3 {[%emt 0:01:09] 7.Nf3 is more fashionable.} Qa5 {[%emt 0:01:58]} 8. Nf3 {[%emt 0:02:43]} Nh6 {[%emt 0:02:25][%cal Bg8h6,Bh6f5,Bf5d6,Bd6c4,Bc4e3][%mdl 32] B06: Modern Defence.} 9. Bc4 {[%emt 0:07:50]} O-O {[%emt 0:02:34]} 10. O-O {[%emt 0:01:44]} Nf5 {[%emt 0:03:18] The position is equal.} 11. Qb3 {[%emt 0:14:30]} Nc6 {[%emt 0:12:11][%cal Rg7d4] [#]} (11... Nd7 $5 {[%cal Rd7b6]}) 12. Rfd1 $146 {[%emt 0:07:10]} ({Predecessor:} 12. Rad1 Nd6 13. Be2 Bf5 14. Bf4 Qd8 15. Ne5 Na5 16. Qa4 Rc8 17. g4 Be6 18. d5 Bxe5 19. Bxe5 {0-1 (45) Nielsen,T (2136)-Samuelsen,C (2168) Eidi 2022}) 12... Qb4 {[%emt 0:12:24]} 13. Qxb4 {[%emt 0:07:47]} Nxb4 {[%emt 0:01:05]} 14. Rac1 {[%emt 0:00:33] Prevents Nc2.} Nd6 {[%emt 0:17:27]} 15. Bb3 {[%emt 0:09:40]} Bg4 {[%emt 0:02:43]} 16. Nd5 {[%emt 0:17:11]} Nxd5 {[%emt 0:01:13]} 17. Bxd5 {[%emt 0:00:09]} e6 {[%emt 0:00:32]} 18. h3 {[%emt 0:04:05]} exd5 {[%emt 0:10:06]} 19. hxg4 {[%emt 0:01:09]} Nc4 {[%emt 0:00:06]} 20. b3 {[%emt 0:02:17]} Nxe3 {[%emt 0:00:16]} 21. fxe3 {[%emt 0:00:10]} Rac8 {[%emt 0:07:04] Prevents Rc7.} 22. Kf2 {[%emt 0:02:37]} b6 {[%emt 0:00:30]} 23. g5 {[%emt 0:01:46]} (23. Ng5 $5 {[%cal Rg5h3]}) 23... Rfe8 {[%emt 0:04:26]} 24. Rh1 {[%emt 0:06:55]} Bf8 {[%emt 0:01:32]} 25. Ke2 {[%emt 0:01:21]} Ba3 {[%emt 0:01:13]} 26. Rxc8 {[%emt 0:00:41]} Rxc8 $11 {[%emt 0:00:02][%mdl 4096] Endgame KRB-KRN} 27. Rf1 {[%emt 0:07:07]} ({Better is} 27. Kd3 $11) 27... Rc2+ $15 {[%emt 0:00:35]} 28. Kd3 {[%emt 0:00:12]} Rxg2 {[%emt 0:00:35] Black is more active.} 29. e4 {[%emt 0:00:37]} dxe4+ {[%emt 0:01:37]} ({Much worse is} 29... Rxa2 $6 30. exd5 Rb2 31. Ne5 $11) 30. Kxe4 {[%emt 0:00:08]} Rxa2 {[%emt 0:04:13]} (30... Be7 $17 31. Ne5 Bxg5 32. Nxf7 Rg4+ 33. Ke5 {[#]} Rf4 $1 34. Rxf4 Bxf4+ 35. Kf6 h5) 31. Ne5 $11 {[%emt 0:00:09]} Rc2 {[%emt 0:05:17] Threatening ...Rc1.} 32. Nxf7 {[%emt 0:00:53]} Rc7 {[%emt 0:00:41]} 33. Nh6+ {[%emt 0:00:50]} Kg7 {[%emt 0:00:11]} 34. Kd3 {[%emt 0:01:04]} (34. Kd5 $11) 34... Bc1 {[%emt 0:01:18]} (34... Bb2 $17 {And now ...Rd7 would win.} 35. d5 Ba3) 35. Rg1 $2 {[%emt 0:00:10][%mdl 8192] [#]} (35. Nf7 $1 $11 {and White is okay.}) 35... Bxg5 $1 $19 {[%emt 0:01:03][%mdl 512]} 36. Rxg5 {[%emt 0:00:26] Threatens to win with Ng4.} (36. Nf5+ gxf5) 36... Kxh6 {[%emt 0:00:07] KR-KR} 37. Re5 {[%emt 0:00:10]} Kg7 {[%emt 0:00:29]} 38. d5 {[%emt 0:00:10]} Kf7 {[%emt 0:01:10]} 39. Kd4 {[%emt 0:01:00]} Re7 {[%emt 0:01:33]} 40. Rg5 {[%emt 0:00:00]} Re1 {[%emt 0:00:00]} 41. Rg2 {[%emt 0:01:58]} Ke7 {[%emt 0:01:50]} 42. Rh2 {[%emt 0:00:50]} Kd6 {[%emt 0:13:09]} 43. Rxh7 {[%emt 0:02:51]} Rd1+ {[%emt 0:00:18]} 44. Kc4 {[%emt 0:03:51]} Rxd5 {[%emt 0:02:40] aiming for ...g5.} 45. Rxa7 $2 {[%emt 0:00:59]} (45. Rh6 Rc5+ 46. Kb4) 45... Kc6 $2 {[%emt 0:08:23]} (45... b5+ 46. Kc3 g5) 46. Rg7 {[%emt 0:03:01]} Rg5 {[%emt 0:00:17]} (46... b5+ $19 47. Kc3 g5) 47. Kb4 $1 $11 {[%emt 0:02:08]} Rg4+ {[%emt 0:01:34]} 48. Ka3 $1 {[%emt 0:00:36]} g5 {[%emt 0:03:15] ...b5 is the strong threat.} 49. Rg6+ {[%emt 0:01:52]} Kb5 {[%emt 0:02:04]} 50. Rg8 {[%emt 0:00:26]} Kc5 {[%emt 0:00:32]} 51. Rc8+ $1 {[%emt 0:00:55]} Kd6 {[%emt 0:01:40] Hoping for ...Rf4.} 52. Rd8+ {[%emt 0:01:16]} Kc7 {[%emt 0:00:19]} 53. Rg8 {[%emt 0:00:08]} b5 {[%emt 0:00:53]} 54. b4 $1 {[%emt 0:02:08]} Rg3+ {[%emt 0:00:04]} 55. Kb2 {[%emt 0:00:08]} g4 {[%emt 0:04:06]} 56. Rg5 {[%emt 0:01:27]} Kc6 {[%emt 0:00:20]} 57. Kc2 {[%emt 0:00:24]} Rg1 {[%emt 0:00:28]} 58. Kd2 {[%emt 0:03:00]} g3 {[%emt 0:00:21]} 59. Kc2 {[%emt 0:02:11]} Kd6 {[%emt 0:00:31]} (59... g2 $11 60. Rg6+ Kd5) 60. Kb2 $17 {[%emt 0:06:02]} Ke6 $2 {[%emt 0:00:14]} (60... g2 $19 61. Rg3 Ke7) 61. Rxb5 $11 {[%emt 0:00:58]} Kf6 {[%emt 0:00:13]} (61... Rf1 $5 62. Rg5 Rf3 $11) 62. Rb8 {[%emt 0:00:11]} Kf7 {[%emt 0:00:16]} (62... g2 $5 {[%cal Rg1b1]} 63. Rg8 Kf7 $11) 63. Rb5 {[%emt 0:00:08]} Kf6 {[%emt 0:00:05]} (63... g2 $5 64. Rg5 Kf6 $11) 64. Rb8 {[%emt 0:00:05]} Kg7 {[%emt 0:00:02]} 65. Rb5 {[%emt 0:00:09]} Kf6 {[%emt 0:00:06]} (65... g2 $5 66. Rg5+ Kf7 $11) 66. Rb8 {[%emt 0:00:12]} Kf5 {[%emt 0:02:23]} (66... g2 $5 67. Rg8 Kf7 $11) 67. Rf8+ {[%emt 0:06:36]} Ke4 {[%emt 0:00:16]} 68. Re8+ {[%emt 0:00:18]} Kf3 {[%emt 0:00:19]} 69. Rf8+ {[%emt 0:00:11]} Ke4 {[%emt 0:01:11]} 70. Re8+ {[%emt 0:00:15]} Kf3 {[%emt 0:00:52]} 71. Rf8+ {[%emt 0:00:08]} Kg2 {[%emt 0:00:02]} 72. b5 {[%emt 0:00:20]} Re1 {[%emt 0:00:17] ( -> ...Re5)} 73. Rf6 {[%emt 0:01:37]} Re5 {[%emt 0:01:32]} 74. b6 {[%emt 0:00:14]} Kg1 {[%emt 0:00:26]} 75. Ka2 {[%emt 0:00:58]} g2 {[%emt 0:00:17]} 76. b7 $2 {[%emt 0:00:42][%mdl 8192]} (76. Kb3 $11) 76... Ra5+ {[%emt 0:00:07] Black mates.} 77. Kb2 {[%emt 0:00:06]} Rb5+ {[%emt 0:00:01]} 78. Kc2 {[%emt 0:00:11]} Rxb7 {[%emt 0:00:02]} 79. Kd2 {[%emt 0:00:29]} Re7 {[%emt 0:00:03]} 80. Kd1 {[%emt 0:00:18]} Re5 {[%emt 0:00:20]} 81. Rf7 {[%emt 0:00:14]} Kh2 {[%emt 0:00:04]} 82. Rh7+ {[%emt 0:00:06]} Kg3 {[%emt 0:00:04]} 83. Rg7+ {[%emt 0:00:08]} Kf3 {[%emt 0:00:38]} 84. Rf7+ {[%emt 0:00:07]} Kg4 {[%emt 0:00:09]} 85. Rg7+ {[%emt 0:00:13]} Rg5 {[%emt 0:00:04] Weighted Error Value: White=0.25 (precise) /Black=0.34} 0-1

[Event "Hungarian Youth-ch U16 2022"]
[Site "Eger"]
[Date "2022.07.27"]
[Round "5.7"]
[White "Sipos, Stefania"]
[Black "Buri, Petra Zsuzsanna"]
[Result "0-1"]
[ECO "B51"]
[WhiteElo "1802"]
[BlackElo "1784"]
[Annotator "NA RC COMBH"]
[PlyCount "54"]
[EventDate "2022.07.21"]
[EventType "tourn"]
[EventCountry "HUN"]
[SourceTitle "playchess.com"]
[Source "ChessBase"]
[SourceQuality "1"]
[TimeControl "40/5400+30:1800+30"]

1. e4 {[%emt 0:00:32]} c5 {[%emt 0:03:09]} 2. Nf3 {[%emt 0:00:12]} d6 {[%emt 0:00:13]} 3. Bb5+ {[%emt 0:00:15]} Nc6 {[%emt 0:01:49]} 4. O-O {[%emt 0:01:20]} a6 {[%emt 0:03:00]} 5. Be2 {[%emt 0:11:16]} Nf6 {[%emt 0:06:12]} 6. d3 {[%emt 0:02:30]} e6 {[%emt 0:02:16]} 7. c3 {[%emt 0:02:49]} Be7 {[%emt 0:03:36]} 8. Nbd2 {[%emt 0:03:12]} d5 {[%emt 0:06:11]} 9. e5 {[%emt 0:06:31]} Nd7 {[%emt 0:02:38]} 10. d4 {[%emt 0:02:29]} O-O {[%emt 0:04:18]} 11. Nb3 {[%emt 0:20:29]} c4 {[%emt 0:12:34]} 12. Nbd2 {[%emt 0:00:40]} f6 {[%emt 0:01:36]} 13. exf6 {[%emt 0:09:35]} Bxf6 {[%emt 0:01:31]} 14. Re1 {[%emt 0:03:06]} b5 $11 {[%emt 0:08:48]} 15. b3 {[%emt 0:06:48]} Qc7 {[%emt 0:05:32]} 16. bxc4 {[%emt 0:05:06]} bxc4 {[%emt 0:00:36]} 17. Nxc4 {[%emt 0:01:20]} dxc4 {[%emt 0:00:52]} 18. Bxc4 {[%emt 0:02:50] [#]} Nxd4 $1 {[%emt 0:07:37]} 19. Nxd4 {[%emt 0:12:37]} Qxc4 {[%emt 0:00:42]} 20. Nxe6 {[%emt 0:01:34]} Re8 {[%emt 0:02:18]} 21. Nd4 {[%emt 0:03:40]} Rxe1+ {[%emt 0:00:45]} 22. Qxe1 {[%emt 0:00:04]} Nf8 {[%emt 0:06:58]} 23. Qe4 {[%emt 0:01:53]} Rb8 {[%emt 0:01:15]} 24. Bf4 {[%emt 0:01:06]} Rb2 {[%emt 0:02:00]} 25. Rc1 {[%emt 0:00:28]} Qxa2 {[%emt 0:01:01]} 26. Bg3 {[%emt 0:00:36]} Bb7 {[%emt 0:00:37]} 27. Qe8 {[%emt 0:00:30]} Rb1 {[%emt 0:01:10]} 0-1

[Event "Hungarian Youth-ch U16 2022"]
[Site "Eger"]
[Date "2022.07.28"]
[Round "6.1"]
[White "Muranyi, Peter"]
[Black "Onodi, Tamas"]
[Result "1-0"]
[ECO "D10"]
[WhiteElo "2018"]
[BlackElo "2030"]
[Annotator "TA"]
[PlyCount "93"]
[EventDate "2022.07.21"]
[EventType "tourn"]
[EventCountry "HUN"]
[SourceTitle "playchess.com"]
[Source "ChessBase"]
[SourceQuality "1"]
[TimeControl "40/5400+30:1800+30"]

{[%evp 13,92,26,22,21,21,14,32,19,26,22,43,35,37,29,31,20,24,20,37,16,90,82,57,46,56,18,97,13,63,25,48,-45,-45,-45,-21,-38,-10,-12,-10,-7,65,-7,0,0,0,0,8,5,41,0,0,0,0,0,108,116,172,172,186,203,405,395,343,309,2884,2520,29995,29980,29980,29981,29981,29982,2880,1786,1065,1028,2420,2221,29985,29986,29999]} 1. d4 {[%emt 0:00:35]} d5 {[%emt 0:06:06]} 2. c4 {[%emt 0:00:09]} c6 {[%emt 0:00:08]} 3. cxd5 {[%emt 0:00:07]} cxd5 {[%emt 0:00:03]} 4. Bf4 {[%emt 0:00:18]} Nc6 {[%emt 0:00:18]} 5. Nc3 {[%emt 0:00:13]} Nf6 {[%emt 0:00:03]} 6. e3 {[%emt 0:00:13]} Bf5 {[%emt 0:00:54]} 7. Qb3 {[%emt 0:00:33]} Na5 {[%emt 0:00:08]} 8. Qa4+ {[%emt 0:00:08] D10: Slav Defence: 3 cxd5 (without early Nf3) and 3 Nc3.} Bd7 {[%emt 0:00:02]} 9. Qc2 {[%emt 0:00:13]} e6 {[%emt 0:00:48]} 10. Bd3 {[%emt 0:01:51] White is slightly better.} Be7 {[%emt 0:01:38]} 11. h3 {[%emt 0:01:01] [#]} h6 $146 {[%emt 0:00:27]} ({Predecessor:} 11... Ne4 12. Bxe4 dxe4 13. Nxe4 Rc8 14. Nc3 b5 15. a3 Nc4 16. Nge2 a5 17. Qb3 O-O {½-½ (30) Navara,D (2730)-Najer,E (2674) Czech Republic 2016}) 12. Nf3 {[%emt 0:01:16]} O-O {[%emt 0:04:11]} 13. O-O {[%emt 0:00:39]} Qb6 {[%emt 0:02:30]} 14. Ne5 {[%emt 0:03:57]} Rfc8 {[%emt 0:11:47]} 15. Qe2 {[%emt 0:07:28]} Be8 {[%emt 0:04:28]} 16. h4 {[%emt 0:31:14]} h5 {[%emt 0:18:32]} (16... Nh7 $11) 17. Bg5 $16 {[%emt 0:18:43]} g6 {[%emt 0:01:32]} 18. g4 {[%emt 0:09:13]} Qd8 {[%emt 0:04:22]} 19. f4 {[%emt 0:05:17] Strongly threatening Bxf6.} hxg4 {[%emt 0:00:20] [#]} (19... Nxg4 $1 $11 20. Nxg4 hxg4) 20. Nxg4 {[%emt 0:00:20] White is much more active. The black rooks are badly placed.} (20. f5 $1 $16 {[%cal Rf5e6]} exf5 21. Bxf5) 20... Nh5 {[%emt 0:00:23]} (20... Nxg4 $11 21. Qxg4 Nc4 22. Bxe7 Qxe7 23. Bxc4 Rxc4) 21. Bxe7 {[%emt 0:03:32]} (21. f5 $5 {[%cal Rg4h6]}) 21... Qxe7 {[%emt 0:00:28]} 22. Qf2 {[%emt 0:00:55] Prevents Ng3.} (22. f5 $14) 22... Nc4 $15 {[%emt 0:08:40][%cal Oc4b2]} 23. Ne5 {[%emt 0:05:22]} Nd6 {[%emt 0:10:02]} 24. Kh2 {[%emt 0:01:23]} Qf6 {[%emt 0:05:47]} 25. Rg1 {[%emt 0:00:38]} Kf8 $1 {[%emt 0:03:18]} 26. Rg5 {[%emt 0:01:35]} b5 {[%emt 0:00:19]} (26... Qh8 $11) 27. a3 {[%emt 0:00:50]} (27. Rf1 $1 $14) 27... a5 {[%emt 0:00:42]} 28. Rag1 {[%emt 0:01:01][%cal Oc3d5]} b4 {[%emt 0:00:50]} 29. axb4 {[%emt 0:00:56]} axb4 {[%emt 0:00:07]} 30. Ne2 {[%emt 0:00:08][%cal Bc3e2,Be2c1,Bc1b3,Bb3c5][%mdl 32]} Ra2 {[%emt 0:02:18]} 31. Nc1 {[%emt 0:01:48]} Ra1 {[%emt 0:04:23]} 32. Nb3 {[%emt 0:00:05]} Rxg1 {[%emt 0:00:08]} 33. Qxg1 {[%emt 0:00:08]} Nc4 {[%emt 0:03:05]} (33... Nb7 $11 {remains equal.}) 34. Nc5 $36 {[%emt 0:01:10][%mdl 2048] Keeping Black busy.} Nxe5 {[%emt 0:00:24]} (34... Qh8 $16 {is a better defense.}) 35. fxe5 $18 {[%emt 0:00:58]} ({But not} 35. dxe5 $6 Qe7 36. Nb3 Ng7 $14) 35... Qe7 {[%emt 0:02:23]} 36. Qf2 {[%emt 0:00:57]} Kg7 {[%emt 0:02:35]} (36... Kg8 {was called for.} 37. Qg1 Kf8) 37. Be2 {[%emt 0:02:03]} f6 {[%emt 0:02:46]} 38. Rg2 {[%emt 0:00:38] [#] aiming for Bxh5.} Kf7 $2 {[%emt 0:01:50]} (38... Rxc5 39. dxc5 Qc7 40. Bxh5 Qxe5+ 41. Qf4 Qxh5 42. Qxb4 (42. Rf2 f5 $18) 42... d4) 39. Bxh5 {[%emt 0:00:40]} gxh5 {[%emt 0:00:02]} 40. Qf3 {[%emt 0:00:00]} Kf8 {[%emt 0:00:00]} 41. Qf4 {[%emt 0:05:45]} Bf7 {[%emt 0:06:06]} 42. exf6 {[%emt 0:08:56]} Qc7 {[%emt 0:01:22]} 43. Kg3 {[%emt 0:00:39]} Qxf4+ {[%emt 0:12:23]} 44. Kxf4 {[%emt 0:00:16] And now Ke5 would win.} Rc6 {[%emt 0:04:02]} 45. Ke5 {[%emt 0:01:32]} Be8 {[%emt 0:01:20]} 46. Nxe6+ {[%emt 0:00:56]} Kf7 {[%emt 0:00:36]} 47. Rg7# {[%emt 0:00:06] Weighted Error Value: White=0.17 (very precise) /Black=0.65} 1-0

[Event "Hungarian Youth-ch U16 2022"]
[Site "Eger"]
[Date "2022.07.28"]
[Round "6.5"]
[White "Sipos, Stefania"]
[Black "Bodo, Boglarka"]
[Result "1/2-1/2"]
[ECO "C24"]
[WhiteElo "1802"]
[BlackElo "1722"]
[Annotator "NA RC COMBH"]
[PlyCount "85"]
[EventDate "2022.07.21"]
[EventType "tourn"]
[EventCountry "HUN"]
[SourceTitle "playchess.com"]
[Source "ChessBase"]
[SourceQuality "1"]
[TimeControl "40/5400+30:1800+30"]

{[%evp 27,75,34,60,60,75,83,82,66,68,47,32767,49,35,46,51,45,54,50,62,50,58,50,59,58,59,45,50,57,52,52,45,47,52,52,52,52,54,58,53,0,52,-3,0,0,9,15,18,7,13,26]} 1. e4 {[%emt 0:00:32]} e5 {[%emt 0:00:44]} 2. Bc4 {[%emt 0:00:16]} Nf6 {[%emt 0:00:20]} 3. d4 {[%emt 0:00:23]} d6 {[%emt 0:01:07]} 4. dxe5 {[%emt 0:02:08]} dxe5 {[%emt 0:04:11]} 5. Bxf7+ {[%emt 0:03:45]} Kxf7 {[%emt 0:03:21]} 6. Qxd8 {[%emt 0:00:16]} Bb4+ {[%emt 0:00:08]} 7. Qd2 {[%emt 0:00:30]} Bxd2+ {[%emt 0:00:18]} 8. Nxd2 {[%emt 0:00:11]} Nc6 {[%emt 0:00:06]} 9. c3 {[%emt 0:03:23]} Be6 {[%emt 0:00:44]} 10. Ne2 {[%emt 0:03:43]} Rad8 {[%emt 0:00:28]} 11. O-O {[%emt 0:01:04]} Rd3 {[%emt 0:00:54]} 12. Ng3 {[%emt 0:04:25]} Rhd8 {[%emt 0:01:26]} 13. Nf3 {[%emt 0:01:36]} h6 {[%emt 0:02:00]} 14. Be3 {[%emt 0:11:17]} Bg4 {[%emt 0:01:49]} 15. Ne1 {[%emt 0:03:26]} Rd1 {[%emt 0:01:50]} 16. Rxd1 {[%emt 0:08:14]} Rxd1 {[%emt 0:02:41]} 17. Nc2 {[%emt 0:02:19]} Rd3 {[%emt 0:02:09]} 18. h3 {[%emt 0:12:48]} (18. Nb4 $16 Nxb4 19. cxb4) 18... Be6 {[%emt 0:01:10]} 19. a3 {[%emt 0:02:06]} a5 {[%emt 0:02:27]} 20. Rc1 {[%emt 0:02:54]} Ne8 {[%emt 0:02:02]} 21. Ne1 {[%emt 0:04:24]} Rd8 {[%emt 0:00:30]} 22. Nf1 {[%emt 0:09:50]} Nd6 {[%emt 0:01:06]} 23. Nd2 $1 {[%emt 0:00:45]} Nc4 {[%emt 0:00:46]} 24. Nxc4 {[%emt 0:00:53]} Bxc4 {[%emt 0:00:07]} 25. Kh2 {[%emt 0:02:02]} a4 {[%emt 0:01:09]} 26. Rc2 {[%emt 0:04:49]} Rd1 {[%emt 0:01:18]} 27. Nf3 $1 {[%emt 0:00:21]} Bd3 {[%emt 0:00:26]} 28. Rd2 {[%emt 0:00:37]} Rxd2 {[%emt 0:00:37]} 29. Nxd2 {[%emt 0:00:07]} Ke6 {[%emt 0:00:37]} 30. Kg3 {[%emt 0:00:57]} Na5 {[%emt 0:01:01]} 31. Kg4 {[%emt 0:04:39]} Nc4 {[%emt 0:01:29]} 32. Nxc4 {[%emt 0:01:05]} Bxc4 {[%emt 0:00:04]} 33. Kh5 {[%emt 0:00:38]} (33. h4 $14) 33... Kf6 {[%emt 0:02:06]} (33... Bf1 $11) 34. g3 {[%emt 0:01:09]} (34. Kh4 $1 $14) 34... Bf1 {[%emt 0:00:35]} 35. g4 {[%emt 0:07:15]} Be2 {[%emt 0:01:52]} 36. f4 {[%emt 0:01:45]} exf4 $11 {[%emt 0:01:09]} 37. Bxf4 {[%emt 0:00:08]} c6 {[%emt 0:00:06]} 38. e5+ {[%emt 0:00:47]} Kf7 {[%emt 0:07:32]} 39. Be3 {[%emt 0:01:11]} Bc4 {[%emt 0:01:23]} 40. Bd4 {[%emt 0:00:00]} Be6 {[%emt 0:00:00]} 41. Kh4 {[%emt 0:02:14]} g6 {[%emt 0:02:08]} 42. Be3 {[%emt 0:00:52]} h5 {[%emt 0:01:28]} 43. gxh5 {[%emt 0:03:34]} 1/2-1/2

[Event "Hungarian Youth-ch U16 2022"]
[Site "Eger"]
[Date "2022.07.28"]
[Round "6.6"]
[White "Buri, Petra Zsuzsanna"]
[Black "Harkai, Emma"]
[Result "1-0"]
[ECO "C00"]
[WhiteElo "1784"]
[BlackElo "1761"]
[Annotator "NA RC COMBH"]
[PlyCount "83"]
[EventDate "2022.07.21"]
[EventType "tourn"]
[EventCountry "HUN"]
[SourceTitle "playchess.com"]
[Source "ChessBase"]
[SourceQuality "1"]
[TimeControl "40/5400+30:1800+30"]

1. e4 {[%emt 0:00:46]} e6 {[%emt 0:00:39]} 2. d4 {[%emt 0:00:12]} d5 {[%emt 0:00:08]} 3. Bd3 {[%emt 0:00:21]} Nf6 {[%emt 0:00:36]} 4. e5 {[%emt 0:00:44]} Nfd7 {[%emt 0:00:14]} 5. Nf3 {[%emt 0:01:05]} c5 {[%emt 0:01:00]} 6. c3 {[%emt 0:00:26]} Nc6 {[%emt 0:00:52]} 7. a3 {[%emt 0:03:00]} c4 {[%emt 0:04:47]} 8. Bc2 {[%emt 0:00:18]} Na5 {[%emt 0:05:11]} 9. O-O {[%emt 0:02:14]} Be7 {[%emt 0:01:21]} 10. Nbd2 {[%emt 0:13:34]} Qc7 {[%emt 0:02:42]} 11. Re1 {[%emt 0:04:30]} b5 {[%emt 0:05:48]} 12. Nf1 {[%emt 0:02:24]} O-O {[%emt 0:13:18]} 13. Ng5 {[%emt 0:09:11]} Bxg5 {[%emt 0:15:25]} 14. Bxg5 {[%emt 0:12:13]} f5 {[%emt 0:12:53]} 15. Qh5 {[%emt 0:10:56]} g6 {[%emt 0:02:38]} 16. Qh4 {[%emt 0:01:16]} Nc6 {[%emt 0:03:34]} 17. Re3 {[%emt 0:06:19]} Re8 {[%emt 0:03:35]} 18. Rh3 {[%emt 0:04:57]} Nf8 {[%emt 0:01:52]} 19. Re1 {[%emt 0:01:57]} a5 {[%emt 0:03:27]} 20. Ree3 {[%emt 0:01:25]} b4 {[%emt 0:03:01]} 21. Bf6 {[%emt 0:06:38]} bxa3 {[%emt 0:05:00]} 22. bxa3 {[%emt 0:00:12]} Rb8 {[%emt 0:01:03]} 23. Ba4 {[%emt 0:02:21]} Bb7 {[%emt 0:01:02]} 24. Qg5 {[%emt 0:01:40]} Ba8 {[%emt 0:01:22]} 25. Rh6 {[%emt 0:02:04]} Qf7 {[%emt 0:03:15]} 26. h4 {[%emt 0:02:38]} Rec8 {[%emt 0:04:37]} 27. h5 {[%emt 0:01:13]} Rc7 {[%emt 0:02:55]} 28. Rg3 {[%emt 0:02:19]} Ne7 {[%emt 0:00:59]} 29. Bxe7 {[%emt 0:03:55]} Rxe7 {[%emt 0:00:06]} 30. hxg6 {[%emt 0:00:25]} Nxg6 {[%emt 0:00:30]} 31. Qh5 {[%emt 0:02:04]} Kf8 {[%emt 0:01:25]} 32. Rgxg6 {[%emt 0:00:28]} hxg6 {[%emt 0:00:27]} 33. Rh8+ {[%emt 0:01:00]} Qg8 {[%emt 0:00:07]} 34. Rxg8+ {[%emt 0:00:11]} Kxg8 {[%emt 0:00:02]} 35. Qxg6+ {[%emt 0:00:08]} Rg7 {[%emt 0:00:41]} 36. Qxe6+ {[%emt 0:00:11]} Kh8 {[%emt 0:00:19]} 37. Bc2 {[%emt 0:00:52]} f4 {[%emt 0:00:30]} 38. Qh6+ {[%emt 0:00:21]} Kg8 {[%emt 0:00:09]} 39. Qxf4 {[%emt 0:00:32]} Bc6 {[%emt 0:00:27]} 40. Ng3 {[%emt 0:00:00]} Rf8 {[%emt 0:00:00]} 41. Qh6 {[%emt 0:01:03]} Bd7 {[%emt 0:01:15]} 42. Nh5 {[%emt 0:00:20]} 1-0

[Event "Hungarian Youth-ch U16 2022"]
[Site "Eger"]
[Date "2022.07.28"]
[Round "6.7"]
[White "Karacsonyi, Kata"]
[Black "Kovacs, Veronika"]
[Result "1/2-1/2"]
[ECO "B11"]
[WhiteElo "2147"]
[BlackElo "1633"]
[Annotator "TA"]
[PlyCount "77"]
[EventDate "2022.07.21"]
[EventType "tourn"]
[EventCountry "HUN"]
[SourceTitle "playchess.com"]
[Source "ChessBase"]
[SourceQuality "1"]
[TimeControl "40/5400+30:1800+30"]

{[%evp 13,77,18,28,22,26,27,29,27,28,25,34,18,27,13,21,6,12,0,0,0,0,-7,24,33,27,27,39,0,0,0,0,0,0,0,0,0,0,0,0,0,0,0,6,6,6,6,6,6,9,6,6,0,0,0,0,0,6,0,0,0,0,0,0,0,0,0]} 1. e4 {[%emt 0:00:32]} c6 {[%emt 0:00:33]} 2. Nf3 {[%emt 0:00:08]} d5 {[%emt 0:00:05]} 3. Nc3 {[%emt 0:00:06]} Bg4 {[%emt 0:00:04]} 4. h3 {[%emt 0:00:10]} Bxf3 {[%emt 0:00:05]} 5. Qxf3 {[%emt 0:00:07]} e6 {[%emt 0:00:04]} 6. Be2 {[%emt 0:00:26]} Nf6 {[%emt 0:00:09]} 7. O-O {[%emt 0:01:33]} Nbd7 {[%emt 0:00:29][%cal Bb8d7,Bd7f6,Bf6d5,Bd5e3][%mdl 32]} 8. d4 {[%emt 0:00:33] B11: Caro-Kann: Two Knights Variation.} Nxe4 {[%emt 0:04:18]} 9. Nxe4 {[%emt 0:00:08]} dxe4 {[%emt 0:00:04]} 10. Qxe4 {[%emt 0:00:06] White has an edge.} Nf6 {[%emt 0:00:07]} 11. Qd3 {[%emt 0:01:45]} Be7 {[%emt 0:01:18]} 12. Bf4 {[%emt 0:04:18]} O-O {[%emt 0:05:05]} 13. c3 {[%emt 0:06:02] [#]} Nd5 $146 {[%emt 0:08:03]} ({Predecessor:} 13... Bd6 14. Bg5 h6 15. Bh4 Be7 16. f4 Nd5 17. Bg3 Bd6 18. c4 Nf6 19. Bh4 Be7 {1-0 (29) Gordon,F (1739)-Davis,L (1972) Terme Catez 2021}) 14. Be5 {[%emt 0:01:29]} Bd6 {[%emt 0:07:38]} 15. f4 {[%emt 0:09:26]} Bxe5 {[%emt 0:03:48]} 16. fxe5 {[%emt 0:06:50]} Qg5 {[%emt 0:09:49][%cal Oc6c5]} 17. Qe4 {[%emt 0:03:21]} Qe3+ {[%emt 0:06:01]} (17... c5 $5) 18. Qxe3 {[%emt 0:00:41]} Nxe3 {[%emt 0:00:05]} 19. Rf3 {[%emt 0:00:36]} Nd5 {[%emt 0:02:12]} 20. g4 {[%emt 0:07:25]} g5 {[%emt 0:08:51] The position is equal.} 21. h4 {[%emt 0:12:40]} h6 {[%emt 0:02:31]} 22. hxg5 {[%emt 0:03:33]} hxg5 {[%emt 0:00:06]} 23. Rh3 {[%emt 0:03:37]} Nf4 {[%emt 0:01:43]} 24. Rh2 {[%emt 0:00:25]} Kg7 {[%emt 0:00:38]} 25. Kf2 {[%emt 0:01:53]} Rh8 {[%emt 0:03:55]} 26. Rah1 {[%emt 0:00:19]} Rxh2+ {[%emt 0:01:14]} 27. Rxh2 {[%emt 0:00:06]} Rh8 {[%emt 0:05:54]} 28. Rxh8 {[%emt 0:00:10]} Kxh8 $11 {[%emt 0:00:03][%mdl 4096] Endgame KB-KN} 29. Ke3 {[%emt 0:09:52]} Kg7 {[%emt 0:04:22]} 30. Bf3 {[%emt 0:02:48]} f6 {[%emt 0:14:57]} 31. c4 {[%emt 0:05:22]} Kf7 {[%emt 0:01:57]} 32. b4 {[%emt 0:03:57]} fxe5 {[%emt 0:05:21]} 33. dxe5 {[%emt 0:00:01]} Ke7 {[%emt 0:00:23]} 34. a4 {[%emt 0:03:31]} Kd7 {[%emt 0:01:23]} 35. Kd4 {[%emt 0:04:40]} b6 {[%emt 0:01:30]} 36. a5 {[%emt 0:03:57]} Kc7 {[%emt 0:01:49][%cal Oc6c5]} 37. axb6+ {[%emt 0:02:13]} axb6 {[%emt 0:00:05]} 38. Ke3 {[%emt 0:02:55]} Ng6 {[%emt 0:01:07]} 39. Kd4 {Inhibits c5+.  Weighted Error Value: White=0.05 (flawless) /Black=0.03 (flawless)} 1/2-1/2